bitfinex/quotes_ETHUSD_20250622
["timestamp","ask_amount","ask_price","bid_price","bid_amount"]
[1750609500152,2.47,2181.7,2181.3,3.10258821]
[1750609500492,8.375,2181.6,2181.3,3.04528821]
[1750609500812,2.47,2181.8,2181.3,3.10258821]
[1750609500999,2.47,2181.8,2181.2,1.378337]
[1750609501000,8.376,2181.7,2181.6,2.28351672]
[1750609501347,8.376,2181.7,2181.5,2.00085999]
[1750609501348,10.0,2181.6,2181.5,4.215891]
[1750609501546,11.481,2181.9,2181.5,4.215891]
[1750609501794,4.80804518,2183.5,2181.5,4.215891]
[1750609501795,8.38,2181.8,2181.5,5.4345801]
[1750609502047,2.47,2182.8,2182.2,0.0573]
[1750609502310,9.98541803,2184.1,2182.3,1.18330275]
[1750609502579,9.98541803,2184.1,2182.5,0.55]
[1750609502580,7.04878004,2184.0,2182.5,0.55]
[1750609502748,7.04892536,2184.0,2182.5,0.55]
[1750609502948,4.57930355,2183.8,2182.5,0.55]
[1750609503187,10.38161717,2183.7,2182.5,0.55]
[1750609503363,8.76861717,2183.6,2182.5,0.55]
[1750609503760,10.0,2183.5,2182.5,0.55]
[1750609503961,10.0,2183.5,2182.4,0.8544]
[1750609503962,2.482,2183.4,2182.4,0.8544]
[1750609504167,8.382,2183.3,2182.5,0.55]
[1750609504481,8.385,2183.2,2182.9,0.0573]
[1750609504646,8.385,2183.1,2182.9,0.0573]
[1750609504851,8.385,2183.1,2182.7,1.3471]
[1750609505082,8.385,2183.1,2182.7,2.03770275]
[1750609505271,0.38161717,2183.6,2182.7,1.3471]
[1750609505592,8.398,2183.5,2183.2,0.0573]
[1750609505787,4.5779843,2184.4,2183.2,0.0573]
[1750609505788,2.482,2184.1,2183.3,0.55]
[1750609505987,2.482,2184.1,2183.4,0.0573]
[1750609505988,2.481,2184.1,2183.4,0.0573]
[1750609506219,11.016,2184.7,2183.6,0.6073]
[1750609506430,2.481,2184.3,2183.6,0.65309398]
[1750609506633,2.481,2184.3,2183.6,0.6073]
[1750609506927,0.38161717,2184.2,2183.8,0.7706]
[1750609507220,0.38161717,2184.2,2183.9,0.59578619]
[1750609507221,8.77361717,2184.2,2183.9,0.59578619]
[1750609507426,8.77361717,2184.2,2184.0,0.55]
[1750609507624,0.38161717,2184.2,2183.9,0.55]
[1750609507787,8.389,2184.1,2184.0,0.0573]
[1750609508412,8.383,2184.2,2184.1,1.4229]
[1750609508612,11.016,2184.7,2184.5,0.26215625]
[1750609509417,11.016,2184.7,2184.6,1.376358]
[1750609509418,25.59328749,2184.7,2184.6,1.376358]
[1750609509718,23.497,2184.7,2184.6,1.376358]
[1750609510019,21.873,2184.7,2184.6,1.376358]
[1750609511190,10.857,2184.7,2184.6,1.376358]
[1750609511924,0.55,2184.5,2183.3,0.7866]
[1750609512107,10.859,2184.4,2183.8,1.377126]
[1750609512342,10.0,2184.3,2183.8,1.377126]
[1750609512616,10.0,2184.3,2182.9,0.8439]
[1750609512791,4.57884937,2184.0,2183.6,1.377126]
[1750609512993,10.0,2184.3,2183.6,1.377126]
[1750609512994,10.0,2183.8,2183.6,1.377126]
[1750609513194,10.0,2183.8,2182.5,0.04580335]
[1750609513195,15.43940959,2183.7,2182.6,0.7866]
[1750609513500,15.43940959,2183.7,2182.1,2.25305064]
[1750609513501,4.58059425,2183.2,2182.9,1.377126]
[1750609513709,15.44767933,2183.1,2182.3,0.7866]
[1750609513883,2.48,2183.0,2182.4,1.377126]
[1750609514538,2.48,2183.0,2182.8,0.84908898]
[1750609515290,7.0609255,2183.0,2182.8,0.84908898]
[1750609515492,2.48,2183.0,2182.1,2.25305064]
[1750609515699,16.05718363,2182.9,2182.0,3.03436647]
[1750609515925,4.58132267,2182.8,2182.2,1.377939]
[1750609516091,8.379,2182.7,2182.2,1.377939]
[1750609516291,8.379,2182.7,2182.2,3.62454225]
[1750609516919,8.379,2182.7,2182.2,1.377939]
[1750609518224,8.379,2182.7,2182.2,3.62454225]
[1750609518795,8.379,2182.7,2182.2,1.377939]
[1750609520414,2.481,2183.0,2182.3,1.44310275]
[1750609520738,8.349,2182.9,2182.3,3.65176092]
[1750609520896,8.349,2182.9,2182.4,10.55]
[1750609521103,8.349,2182.9,2182.5,0.63330275]
[1750609521297,2.481,2183.0,2182.9,0.85055172]
[1750609522106,2.481,2183.0,2182.9,0.84912176]
[1750609522308,2.481,2183.0,2182.9,0.0018251]
[1750609522632,10.853,2183.0,2182.9,0.0018251]
[1750609523243,10.853,2183.0,2182.6,0.0572]
[1750609523835,10.853,2183.0,2182.3,2.96115817]
[1750609524000,15.43386783,2183.0,2182.3,2.96115817]
[1750609524202,10.853,2183.0,2182.3,2.20865817]
[1750609524638,10.0,2182.9,2182.3,2.20865817]
[1750609524809,4.58138235,2182.8,2181.7,3.07401547]
[1750609525017,4.58138235,2182.8,2182.1,2.25305064]
[1750609525202,11.476,2182.8,2182.1,2.25305064]
[1750609525406,2.481,2183.0,2182.8,0.0572]
[1750609525610,8.364,2182.9,2182.8,2.3278966]
[1750609526041,8.364,2182.9,2182.8,2.2706966]
[1750609526240,8.364,2182.9,2182.7,0.7989]
[1750609526241,8.364,2182.9,2182.7,3.06845193]
[1750609526542,8.364,2182.9,2182.7,2.26955193]
[1750609526702,8.364,2182.9,2182.6,2.28399573]
[1750609527247,4.58144847,2182.8,2182.1,2.25305064]
[1750609527553,10.0,2182.8,2182.1,2.25305064]
[1750609528054,4.58079526,2183.1,2182.8,2.2706966]
[1750609528210,10.0,2182.9,2182.7,4.75055193]
[1750609528819,14.58107191,2182.9,2182.7,4.75055193]
[1750609529020,4.58127176,2182.8,2182.7,4.75055193]
[1750609529349,21.475,2182.9,2182.0,2.17694]
[1750609529350,10.0,2182.6,2182.0,1.37804]
[1750609529530,4.58106617,2182.9,2182.0,3.62580647]
[1750609529852,3.97540217,2182.7,2182.0,3.62580647]
[1750609530154,4.58169835,2182.6,2182.0,3.62580647]
[1750609530365,11.476,2182.7,2182.0,3.62580647]
[1750609530581,19.386,2182.7,2182.0,3.62580647]
[1750609530840,2.481,2182.6,2182.0,3.62580647]
[1750609531175,2.481,2182.5,2182.1,2.31025064]
[1750609531317,2.481,2182.4,2182.1,2.25305064]
[1750609531665,10.0,2182.7,2182.3,4.68965817]
[1750609531962,2.481,2182.6,2182.3,4.68965817]
[1750609532163,8.363,2182.5,2182.3,4.68965817]
[1750609532398,0.00179217,2183.0,2182.3,4.68965817]
[1750609532657,10.841,2182.9,2182.4,3.00067097]
[1750609532957,8.359,2182.8,2182.4,2.22217097]
[1750609533151,8.359,2182.8,2182.1,2.25305064]
[1750609533354,10.819,2182.7,2182.3,2.20865817]
[1750609533544,10.819,2182.7,2182.3,2.26585817]
[1750609534423,10.819,2182.7,2182.3,2.20865817]
[1750609535035,10.819,2182.7,2182.2,2.24660325]
[1750609535440,10.819,2182.7,2182.1,2.25305064]
[1750609536071,11.016,2182.6,2182.1,2.25305064]
[1750609536270,13.481,2182.5,2182.1,2.25305064]
[1750609537126,13.481,2182.5,2182.1,2.31025064]
[1750609537335,3.30399938,2183.1,2182.4,4.68717097]
[1750609537539,3.30399938,2183.1,2182.6,0.76]
[1750609537540,2.465,2183.0,2182.6,0.76]
[1750609537727,10.803,2183.0,2182.6,0.76]
[1750609537923,2.73169938,2183.1,2182.6,0.76]
[1750609538123,2.73169938,2183.1,2182.7,0.0572]
[1750609538342,2.73169938,2183.1,2182.6,3.04399573]
[1750609538949,7.31234435,2183.1,2182.5,2.23870833]
[1750609539144,7.31234435,2183.1,2182.1,1.07998181]
[1750609539145,2.73169938,2183.1,2182.1,2.25305064]
[1750609539345,10.0,2182.9,2182.1,2.88635339]
[1750609539547,10.0,2182.9,2182.1,2.25305064]
[1750609539548,4.58171597,2182.6,2182.1,2.25305064]
[1750609539860,19.824,2182.8,2182.1,2.25305064]
[1750609540063,4.58159156,2182.7,2182.1,2.25305064]
[1750609540241,24.40531727,2182.8,2182.1,2.25305064]
[1750609540242,19.824,2182.8,2182.1,2.25305064]
[1750609540438,4.58159958,2182.7,2182.1,2.25305064]
[1750609540668,10.0,2182.7,2182.1,2.25305064]
[1750609541161,8.348,2182.6,2182.1,2.6921597]
[1750609541663,8.348,2182.6,2182.3,3.06485817]
[1750609541829,8.348,2182.6,2182.3,3.64096092]
[1750609542034,8.348,2182.6,2182.3,3.00765817]
[1750609542268,8.348,2182.6,2182.3,3.06485817]
[1750609542430,8.348,2182.6,2182.4,2.27937097]
[1750609543064,8.348,2182.6,2182.4,2.22217097]
[1750609543269,8.348,2182.6,2182.1,2.25305064]
[1750609543455,12.92984309,2182.6,2182.1,2.25305064]
[1750609543658,12.92980915,2182.6,2182.1,2.25305064]
[1750609543836,4.58212073,2182.4,2182.1,2.25305064]
[1750609544036,16.06012073,2182.4,2182.1,2.25305064]
[1750609544430,11.478,2182.4,2182.1,2.25305064]
[1750609545138,21.478,2182.4,2182.3,5.51507931]
[1750609545936,34.96,2182.4,2182.3,5.51507931]
[1750609546254,33.5731,2182.4,2182.0,1.37804]
[1750609546460,23.482,2182.4,2182.0,1.37804]
[1750609546667,8.35,2182.3,2182.0,1.37804]
[1750609547266,11.017,2182.4,2182.1,0.8154]
[1750609547442,11.017,2182.4,2182.2,0.6072]
[1750609547443,8.349,2182.3,2182.2,0.6072]
[1750609547647,4.58011048,2183.4,2182.3,0.69050275]
[1750609547832,0.46647631,2183.9,2182.5,0.8154]
[1750609548039,14.80052396,2184.0,2182.6,0.63330275]
[1750609548040,4.57986162,2183.5,2182.6,0.63330275]
[1750609548368,4.57976639,2183.6,2182.6,0.63330275]
[1750609548573,4.57989991,2183.5,2182.6,0.63330275]
[1750609549166,8.345,2183.4,2182.6,0.63330275]
[1750609549672,10.0,2183.3,2182.6,0.63330275]
[1750609549870,4.57625852,2185.2,2182.6,0.63330275]
[1750609550083,4.57933556,2183.8,2182.6,0.63330275]
[1750609550387,22.91239681,2183.7,2182.7,1.25401509]
[1750609550700,0.69617175,2184.0,2182.8,0.55]
[1750609550701,0.46998383,2184.0,2182.8,0.55]
[1750609550996,4.57886191,2184.0,2182.9,0.8154]
[1750609551284,8.327,2183.9,2183.0,0.0572]
[1750609551508,4.57705524,2184.9,2183.3,0.55]
[1750609551701,4.57705524,2184.9,2183.4,0.8124]
[1750609551702,4.57801943,2184.4,2183.4,0.8124]
[1750609551852,10.0,2184.3,2183.4,0.8124]
[1750609552051,8.328,2184.7,2183.4,0.8124]
[1750609552052,1.76727547,2184.5,2183.5,0.0572]
[1750609552251,1.76727547,2184.5,2183.6,0.8124]
[1750609552451,8.324,2184.4,2183.6,0.8124]
[1750609552651,8.325,2184.3,2183.7,0.55]
[1750609553256,8.325,2184.3,2183.7,0.6084]
[1750609553462,8.325,2184.3,2183.7,0.0584]
[1750609554373,1.76727547,2184.5,2183.9,0.0584]
[1750609554374,8.326,2184.2,2183.9,0.0584]
[1750609554568,8.326,2184.2,2183.8,1.99570275]
[1750609555020,0.67197547,2184.5,2183.9,0.0584]
[1750609555223,0.67197547,2184.5,2183.8,11.17731308]
[1750609555427,0.67197547,2184.5,2184.4,0.8708]
[1750609555744,0.67197547,2184.5,2184.0,0.63330275]
[1750609555745,0.67197547,2184.5,2184.0,0.8124]
[1750609556026,13.478,2184.4,2183.7,0.8124]
[1750609556318,13.478,2184.4,2183.7,1.44570275]
[1750609556520,13.478,2184.4,2183.7,0.8124]
[1750609556521,8.332,2184.3,2183.7,0.8124]
[1750609558741,24.946,2184.4,2183.7,0.8124]
[1750609559033,13.477,2184.3,2183.7,0.8124]
[1750609559823,13.477,2184.3,2183.7,1.44570275]
[1750609560025,8.318,2184.2,2183.7,1.44570275]
[1750609560328,13.476,2184.1,2183.7,0.8124]
[1750609560501,2.464,2184.0,2183.7,0.8124]
[1750609560706,4.57784421,2184.5,2183.7,0.8124]
[1750609561120,4.57758307,2184.6,2183.7,0.8124]
[1750609561532,4.57774113,2184.5,2183.7,0.8124]
[1750609561700,8.308,2184.4,2183.7,0.8124]
[1750609562104,8.308,2184.4,2183.7,1.44570275]
[1750609562302,8.308,2184.4,2183.7,1.24570275]
[1750609562511,4.57826496,2184.3,2183.7,0.6124]
[1750609563045,11.415,2184.2,2183.6,2.24533979]
[1750609563214,11.415,2184.2,2183.5,0.8124]
[1750609563215,15.99340865,2184.2,2183.5,0.8124]
[1750609563410,4.5785534,2184.1,2183.5,0.8124]
[1750609563614,15.99344459,2184.2,2183.5,0.8124]
[1750609564241,11.415,2184.2,2183.5,0.8124]
[1750609564459,8.292,2184.1,2183.6,0.63330275]
[1750609564617,3.68459953,2184.7,2183.7,0.8111]
[1750609564808,10.0,2184.6,2183.7,1.44440275]
[1750609565081,4.57884948,2184.0,2183.7,0.8111]
[1750609565368,5.12791613,2184.4,2183.5,0.8124]
[1750609565535,4.57867715,2184.1,2183.5,0.8124]
[1750609565863,15.99376419,2184.0,2183.5,0.8124]
[1750609566065,29.43076419,2184.0,2183.5,0.8124]
[1750609566374,8.292,2183.9,2183.5,0.8124]
[1750609566676,13.437,2184.0,2183.5,0.8124]
[1750609566830,13.437,2183.8,2183.5,0.8124]
[1750609567029,9.055,2184.0,2183.5,0.8124]
[1750609567030,13.437,2183.7,2183.5,0.8124]
[1750609567458,13.437,2183.7,2183.6,2.24533979]
[1750609567459,11.011,2183.7,2183.6,2.24533979]
[1750609567665,13.437,2183.7,2183.6,2.24533979]
[1750609567830,7.3725,2184.0,2183.6,2.24533979]
[1750609568250,8.292,2183.9,2183.6,2.24533979]
[1750609568451,8.292,2183.9,2183.5,3.08655204]
[1750609569256,7.373,2184.1,2183.5,3.08655204]
[1750609569257,7.373,2184.1,2183.6,0.63330275]
[1750609569445,6.6431,2184.1,2183.6,0.63330275]
[1750609569642,14.57799176,2184.4,2183.6,2.87864254]
[1750609569849,10.0,2184.2,2183.6,2.87864254]
[1750609570144,9.5215,2184.2,2183.6,2.87864254]
[1750609570755,5.398,2184.3,2183.6,3.33469679]
[1750609570968,0.12,2185.0,2183.8,2.25565799]
[1750609571174,4.69676363,2185.0,2183.8,2.88896074]
[1750609571356,12.86889277,2184.9,2183.8,2.88896074]
[1750609571865,8.292,2184.9,2183.8,2.88896074]
[1750609572052,8.292,2184.9,2184.0,2.22650705]
[1750609572258,8.292,2184.9,2184.2,0.776]
[1750609572456,15.398,2184.8,2184.2,0.776]
[1750609572676,8.292,2184.7,2184.2,1.40930275]
[1750609572872,8.291,2184.6,2184.4,0.0584]
[1750609573171,8.291,2184.5,2184.4,0.0584]
[1750609573338,3.48480311,2185.6,2185.0,0.5181875]
[1750609573540,5.398,2185.5,2185.0,0.5181875]
[1750609574753,5.398,2185.5,2184.9,0.776]
[1750609575477,10.0,2185.3,2184.9,0.776]
[1750609575651,10.0,2185.3,2184.6,0.0584]
[1750609575652,14.57612702,2185.3,2184.6,0.776]
[1750609575839,5.398,2185.2,2185.0,1.376566]
[1750609576047,12.426,2185.1,2185.0,1.376566]
[1750609578182,20.716,2185.1,2185.0,1.376566]
[1750609578480,10.716,2185.1,2185.0,1.376566]
[1750609578977,10.715,2185.1,2185.0,1.376566]
[1750609579745,10.715,2185.1,2185.0,2.242066]
[1750609581295,11.009,2185.2,2185.1,0.6084]
[1750609581455,5.724,2186.0,2185.5,1.81833125]
[1750609581456,11.007,2185.6,2185.5,1.81833125]
[1750609581660,13.432,2185.6,2185.5,1.81833125]
[1750609581869,13.432,2185.6,2185.5,1.75993125]
[1750609582774,13.432,2185.6,2185.5,0.7554]
[1750609582977,21.72,2185.6,2185.5,0.7554]
[1750609583377,21.72,2185.6,2185.1,10.0584]
[1750609583579,21.72,2185.6,2185.2,0.815]
[1750609584050,10.712,2185.5,2185.3,0.0596]
[1750609584250,10.712,2185.5,2185.0,1.376566]
[1750609584251,11.007,2185.6,2185.4,0.55]
[1750609584473,10.712,2185.5,2185.4,1.365]
[1750609585578,10.712,2185.5,2185.4,0.815]
[1750609586613,11.007,2185.6,2185.4,0.815]
[1750609586614,11.007,2185.6,2185.5,0.0596]
[1750609586888,11.007,2185.6,2185.5,0.6096]
[1750609587061,21.718,2185.6,2185.5,0.6096]
[1750609587257,4.57167066,2187.4,2185.5,0.6096]
[1750609587258,0.46743195,2187.2,2185.9,0.55]
[1750609587474,13.429,2187.1,2186.2,0.8265]
[1750609587688,23.429,2187.0,2186.2,0.8861]
[1750609587875,2.425,2186.9,2186.2,0.8861]
[1750609588679,8.284,2186.8,2186.2,0.8861]
[1750609589100,11.004,2187.0,2186.3,0.55]
[1750609589269,2.425,2186.7,2186.3,0.55]
[1750609589473,8.284,2186.6,2186.4,0.0596]
[1750609590212,2.424,2186.7,2186.6,0.6096]
[1750609590398,10.708,2186.7,2186.6,0.6096]
[1750609591311,2.424,2186.7,2186.6,11.4072]
[1750609591607,13.428,2187.0,2186.9,1.4146]
[1750609591774,15.13683417,2188.6,2187.1,1.13985]
[1750609591775,2.424,2187.2,2187.1,1.13985]
[1750609591971,2.424,2187.2,2187.1,1.94485]
[1750609592198,19.70600247,2188.6,2187.1,1.94485]
[1750609592199,0.22404121,2188.4,2187.2,0.55]
[1750609592400,8.282,2188.3,2187.4,0.55]
[1750609592611,8.282,2188.3,2187.3,0.805]
[1750609593298,10.0,2188.2,2187.3,0.805]
[1750609593630,19.99401033,2187.4,2186.3,0.46177248]
[1750609593921,19.99401033,2187.4,2186.2,0.805]
[1750609593922,10.0,2187.2,2187.0,1.375163]
[1750609594223,5.398,2187.5,2186.3,0.0596]
[1750609594428,8.279,2187.4,2186.5,0.805]
[1750609594598,8.279,2187.3,2187.0,1.375084]
[1750609596041,13.416,2187.2,2187.0,1.375084]
[1750609597126,18.814,2187.2,2187.0,1.375084]
[1750609597638,0.00321393,2187.1,2187.0,1.375084]
[1750609597928,0.00321393,2187.1,2186.9,1.375179]
[1750609598144,8.278,2187.0,2186.9,1.375179]
[1750609598492,0.00321393,2187.1,2187.0,0.8646]
[1750609598697,10.70021393,2187.1,2187.0,0.8646]
[1750609601736,10.69921393,2187.1,2187.0,0.8646]
[1750609601938,10.69821393,2187.1,2187.0,11.4146]
[1750609602145,10.69821393,2187.1,2187.0,12.73857449]
[1750609602465,0.40488976,2188.5,2187.1,0.55]
[1750609602661,10.996,2188.0,2187.3,0.55]
[1750609602860,2.419,2187.9,2187.2,0.0596]
[1750609603574,10.996,2188.0,2187.2,0.0596]
[1750609603575,10.996,2188.0,2187.5,0.55]
[1750609603756,10.996,2188.0,2187.7,0.0596]
[1750609603757,2.419,2187.8,2187.7,0.0596]
[1750609604157,2.419,2187.8,2187.7,1.4346]
[1750609604677,10.996,2188.0,2187.8,0.55]
[1750609604895,10.996,2188.0,2187.8,0.6096]
[1750609605184,11.2184891,2188.6,2188.0,0.55]
[1750609605485,10.692,2188.5,2187.4,0.825]
[1750609605789,10.692,2188.5,2187.6,0.55]
[1750609606090,10.692,2188.5,2187.5,0.0596]
[1750609606091,10.0,2188.4,2187.5,0.0596]
[1750609607183,10.0,2188.4,2187.4,0.825]
[1750609607184,5.4013,2188.3,2187.4,0.825]
[1750609607390,0.0033,2188.1,2187.0,10.0]
[1750609607705,2.418,2188.0,2187.1,0.8404]
[1750609607843,8.272,2187.9,2187.1,0.8404]
[1750609608547,0.1757,2188.2,2187.5,0.8404]
[1750609608733,0.1757,2188.5,2187.7,0.0596]
[1750609608936,11.2184891,2188.6,2188.0,0.55]
[1750609609169,10.689,2188.5,2188.0,0.55]
[1750609609378,10.689,2188.5,2188.1,0.0596]
[1750609610174,10.689,2188.5,2188.0,0.55]
[1750609610375,10.689,2188.5,2188.1,0.0596]
[1750609610581,11.2184891,2188.6,2188.1,0.0596]
[1750609610781,10.688,2188.4,2187.9,0.8404]
[1750609611081,10.688,2188.4,2188.0,0.0596]
[1750609611981,10.688,2188.4,2187.9,0.8404]
[1750609612172,0.1757,2188.2,2187.6,0.8277]
[1750609612370,0.1757,2188.5,2187.7,0.0614]
[1750609612714,11.2184891,2188.6,2188.1,0.0614]
[1750609613003,0.2244891,2188.6,2188.1,9.99401033]
[1750609613203,0.2244891,2188.6,2188.0,1.01403456]
[1750609613204,8.268,2188.5,2188.4,21.37171033]
[1750609613503,0.2244891,2188.6,2188.5,10.6114]
[1750609613710,2.418,2188.8,2188.7,1.3777]
[1750609613862,10.686,2188.8,2188.7,1.4391]
[1750609614203,0.0033,2189.2,2188.7,1.4391]
[1750609614204,2.418,2189.0,2188.9,0.6114]
[1750609614366,10.686,2189.0,2188.9,0.6114]
[1750609615399,10.686,2189.0,2188.8,0.8277]
[1750609615587,10.686,2189.0,2188.8,0.8891]
[1750609615987,10.686,2189.0,2188.8,0.8277]
[1750609616189,0.0033,2189.2,2188.8,0.8891]
[1750609616411,10.683,2188.9,2188.8,1.3777]
[1750609616613,0.0033,2189.2,2188.9,0.6114]
[1750609616894,10.683,2189.1,2189.0,0.9085]
[1750609617456,0.0033,2189.2,2189.1,0.55]
[1750609617659,10.6843,2189.2,2189.1,0.6114]
[1750609617887,0.0033,2189.2,2189.1,1.74627709]
[1750609618213,2.417,2189.8,2189.3,0.0614]
[1750609618503,8.264,2189.7,2189.5,0.8471]
[1750609618821,8.264,2189.7,2189.2,1.3971]
[1750609619187,8.264,2189.7,2189.2,0.8471]
[1750609619843,0.4067,2190.0,2189.3,0.55]
[1750609619844,10.68,2189.6,2189.3,0.55]
[1750609619993,10.68,2189.5,2189.2,0.8471]
[1750609620188,10.68,2189.4,2189.2,0.8471]
[1750609620412,2.416,2189.3,2189.2,1.3971]
[1750609620923,2.416,2189.3,2188.9,2.282092]
[1750609621123,13.447,2189.3,2188.6,0.8471]
[1750609621499,13.447,2189.3,2188.5,1.373838]
[1750609621705,13.447,2189.3,2188.2,0.8319]
[1750609621706,0.045,2189.1,2188.2,0.8319]
[1750609621934,0.3617,2188.8,2187.9,0.8319]
[1750609622231,10.722,2188.7,2187.7,0.0614]
[1750609622435,10.677,2188.6,2187.7,10.10111944]
[1750609622594,10.677,2188.6,2188.0,1.374095]
[1750609622796,10.677,2188.6,2188.1,0.8319]
[1750609623030,10.677,2188.6,2188.0,1.374095]
[1750609623031,10.722,2188.6,2188.0,1.374095]
[1750609623233,10.722,2188.6,2187.7,0.8319]
[1750609623433,5.398,2188.9,2187.9,0.0614]
[1750609623434,0.3617,2188.5,2187.9,0.0614]
[1750609623618,2.411,2188.4,2188.1,0.0614]
[1750609623821,2.411,2188.3,2188.2,0.0614]
[1750609624127,8.261,2188.3,2188.2,0.6114]
[1750609624594,8.261,2188.3,2188.2,1.06600159]
[1750609624795,8.261,2188.3,2188.2,11.06600159]
[1750609625129,8.261,2188.3,2188.2,14.02569278]
[1750609625295,8.261,2188.3,2188.2,14.08709278]
[1750609625909,2.411,2188.4,2188.2,14.08709278]
[1750609626135,2.411,2188.4,2188.3,0.0614]
[1750609626325,0.3617,2189.4,2188.3,0.65709342]
[1750609626498,0.3617,2189.4,2188.5,0.55]
[1750609626699,0.2244891,2190.8,2188.8,0.0614]
[1750609626700,0.3617,2189.7,2188.8,0.0614]
[1750609626901,0.3617,2189.7,2189.0,0.6114]
[1750609627234,10.669,2189.2,2189.1,0.8134]
[1750609627741,10.669,2189.2,2188.8,1.4248]
[1750609628115,10.669,2189.2,2188.8,0.8134]
[1750609628742,10.669,2189.2,2188.4,10.6114]
[1750609628743,10.669,2189.2,2188.5,1.3634]
[1750609628956,0.3617,2189.7,2188.7,0.55]
[1750609628957,2.41,2189.1,2188.7,0.55]
[1750609629100,10.669,2189.1,2188.8,0.0614]
[1750609629297,10.669,2189.1,2188.7,0.55]
[1750609629953,0.045,2189.5,2188.8,0.0614]
[1750609630290,10.668,2189.2,2188.6,0.46174268]
[1750609630399,10.668,2189.2,2188.7,0.6114]
[1750609631748,10.667,2189.1,2189.0,1.3634]
[1750609632042,10.667,2189.1,2189.0,0.8134]
[1750609632504,10.667,2189.1,2189.0,1.4248]
[1750609632697,0.3617,2189.7,2189.0,1.4248]
[1750609632902,13.396,2189.3,2189.2,0.6114]
[1750609633101,21.652,2189.3,2189.2,1.75844787]
[1750609633546,21.652,2189.3,2189.2,0.6114]
[1750609633728,21.652,2189.3,2189.2,0.55]
[1750609633913,21.652,2189.3,2189.0,0.8134]
[1750609634112,21.652,2189.3,2188.7,0.8134]
[1750609634347,8.256,2189.2,2188.9,0.0614]
[1750609634509,8.256,2189.2,2189.1,0.55]
[1750609634709,8.256,2189.2,2188.8,0.0614]
[1750609634909,8.301,2189.2,2188.4,0.8134]
[1750609635609,8.301,2189.2,2188.0,0.0614]
[1750609635610,8.301,2189.2,2188.1,0.8134]
[1750609636445,11.05,2189.1,2188.1,0.8134]
[1750609637145,0.5,2190.6,2188.5,9.99401033]
[1750609637353,18.35385658,2192.7,2189.1,0.8134]
[1750609637354,0.386,2190.2,2189.1,0.8134]
[1750609637638,2.41,2190.4,2188.8,0.0614]
[1750609637639,0.823,2190.0,2188.8,0.0614]
[1750609637853,11.806,2190.0,2189.3,0.55]
[1750609638056,8.261,2189.9,2189.3,0.55]
[1750609638356,8.261,2189.9,2189.5,0.6114]
[1750609638357,2.41,2189.8,2189.5,0.6114]
[1750609638725,2.41,2189.8,2189.1,0.0614]
[1750609638924,2.41,2189.8,2189.2,0.55]
[1750609639424,2.41,2189.8,2188.8,10.0]
[1750609639757,0.823,2189.7,2188.9,0.55]
[1750609639968,0.823,2189.7,2188.9,0.59567956]
[1750609640130,0.823,2189.7,2188.9,2.65622059]
[1750609640454,10.675,2189.6,2188.9,2.65622059]
[1750609640774,10.674,2189.5,2189.4,10.0]
[1750609640940,10.674,2189.5,2189.2,0.55]
[1750609643270,10.674,2189.5,2189.2,1.923315]
[1750609643844,11.5598,2189.5,2189.2,1.373315]
[1750609646356,0.045,2189.4,2188.7,0.0622]
[1750609646525,0.045,2189.4,2188.6,1.3246043]
[1750609646526,0.045,2189.4,2188.6,11.3246043]
[1750609646729,0.045,2189.4,2189.0,1.373623]
[1750609647062,8.253,2189.3,2188.6,1.3246043]
[1750609647259,8.253,2189.3,2188.6,2.6982273]
[1750609647559,0.8858,2189.5,2188.7,0.55]
[1750609647719,10.663,2189.2,2188.9,0.6122]
[1750609647924,10.663,2189.1,2188.6,3.09603889]
[1750609648126,2.41,2189.0,2188.6,2.6982273]
[1750609648655,2.41,2189.0,2188.6,2.7604273]
[1750609649228,0.8253,2189.2,2188.6,2.7604273]
[1750609649425,10.663,2189.1,2188.8,0.0622]
[1750609649656,8.253,2189.0,2188.7,10.0]
[1750609649967,8.253,2189.0,2188.7,12.26922376]
[1750609650124,8.253,2189.0,2188.8,0.0622]
[1750609650622,8.253,2189.0,2188.7,10.0]
[1750609652025,8.253,2189.0,2188.6,2.6982273]
[1750609652026,8.253,2189.0,2188.6,1.8278273]
[1750609652221,11.8632,2188.9,2188.6,1.8278273]
[1750609652427,11.8632,2188.9,2188.1,0.8214]
[1750609652660,11.8632,2188.9,2188.1,2.195375]
[1750609652834,11.8632,2188.9,2188.1,1.373975]
[1750609652835,0.8362,2188.8,2188.1,1.373975]
[1750609653041,0.045,2188.6,2187.8,3.16953361]
[1750609653359,2.41,2188.5,2187.9,10.0]
[1750609653567,8.253,2188.4,2187.8,4.86068197]
[1750609653888,0.8362,2188.3,2187.9,10.0]
[1750609654162,0.8362,2188.3,2187.8,3.66012861]
[1750609654369,0.8362,2188.3,2187.9,10.0]
[1750609654861,0.8362,2188.3,2187.8,1.374195]
[1750609655164,0.8362,2188.3,2187.4,0.8836]
[1750609655165,0.8812,2188.3,2187.4,0.8836]
[1750609655461,0.8812,2188.3,2187.6,1.374252]
[1750609656760,0.8362,2188.3,2187.6,1.374252]